[Event "December 12 Late 2023"]
[Site "https://www.chess.com"]
[Date "2023.12.12"]
[Round "8"]
[White "Piesik, Piotr"]
[Black "Morris-Suzuki, Alan H"]
[Result "1/2-1/2"]
[Board "46"]
[TimeControl "180+1"]
[WhiteFideId "1136194"]
[BlackFideId "30933218"]
[WhiteElo "2657"]
[BlackElo "2531"]
[WhiteTeam "CZE"]
[BlackTeam "USA"]
[WhiteClock "0:00:16"]
[BlackClock "0:00:06"]

1. Nf3 {[%clk 0:03:00]}  Nf6 {[%clk 0:02:58]} 2. g3 {[%clk 0:03:01]}  g6 {[%clk 0:02:58]} 3. Bg2 {[%clk 0:03:01]}  Bg7 {[%clk 0:02:59]} 4. O-O {[%clk 0:03:02]}  O-O {[%clk 0:03:00]} 5. d4 {[%clk 0:03:03]}  d6 {[%clk 0:03:00]} 6. Nbd2 {[%clk 0:03:03]}  Nc6 {[%clk 0:02:52]} 7. e4 {[%clk 0:03:03]}  e5 {[%clk 0:02:52]} 8. dxe5 {[%clk 0:03:04]}  Nxe5 {[%clk 0:02:47]} 9. Nxe5 {[%clk 0:03:04]}  dxe5 {[%clk 0:02:48]} 10. Qe2 {[%clk 0:03:05]}  Qe7 {[%clk 0:02:47]} 11. b3 {[%clk 0:03:05]}  Rd8 {[%clk 0:02:43]} 12. Bb2 {[%clk 0:03:05]}  Bd7 {[%clk 0:02:19]} 13. Rfd1 {[%clk 0:03:01]}  Bc6 {[%clk 0:02:18]} 14. a4 {[%clk 0:02:59]}  h5 {[%clk 0:02:08]} 15. Nc4 {[%clk 0:02:56]}  Ne8 {[%clk 0:01:56]} 16. Na5 {[%clk 0:02:54]}  Qe6 {[%clk 0:01:47]} 17. f3 {[%clk 0:02:47]}  h4 {[%clk 0:01:46]} 18. Bf1 {[%clk 0:02:43]}  hxg3 {[%clk 0:01:45]} 19. hxg3 {[%clk 0:02:44]}  Bh6 {[%clk 0:01:27]} 20. Kg2 {[%clk 0:02:36]}  Bd7 {[%clk 0:01:14]} 21. Nxb7 {[%clk 0:02:29]}  Qh3+ {[%clk 0:01:13]} 22. Kf2 {[%clk 0:02:29]}  Qh2+ {[%clk 0:01:13]} 23. Bg2 {[%clk 0:02:30]}  Bh3 {[%clk 0:01:09]} 24. Qf1 {[%clk 0:02:17]}  Rdb8 {[%clk 0:00:39]} 25. Na5 {[%clk 0:01:54]}  Be6 {[%clk 0:00:22]} 26. Qh1 {[%clk 0:01:47]}  Be3+ {[%clk 0:00:21]} 27. Kxe3 {[%clk 0:01:45]}  Qxg3 {[%clk 0:00:21]} 28. Nc6 {[%clk 0:01:37]}  Nf6 {[%clk 0:00:19]} 29. Nxe5 {[%clk 0:01:22]}  Rb4 {[%clk 0:00:12]} 30. Rd4 {[%clk 0:01:14]}  Rxd4 {[%clk 0:00:09]} 31. Bxd4 {[%clk 0:01:15]}  c5 {[%clk 0:00:09]} 32. Bc3 {[%clk 0:01:14]}  Rd8 {[%clk 0:00:06]} 33. Ke2 {[%clk 0:00:53]}  Nxe4 {[%clk 0:00:05]} 34. fxe4 {[%clk 0:00:51]}  Qxc3 {[%clk 0:00:05]} 35. Nf3 {[%clk 0:00:34]}  Qxc2+ {[%clk 0:00:06]} 36. Kf1 {[%clk 0:00:34]}  Bxb3 {[%clk 0:00:06]} 37. Kg1 {[%clk 0:00:31]}  Qxe4 {[%clk 0:00:06]} 38. Re1 {[%clk 0:00:30]}  Qg4 {[%clk 0:00:06]} 39. Qh3 {[%clk 0:00:29]}  Qxh3 {[%clk 0:00:07]} 40. Bxh3 {[%clk 0:00:30]}  Bxa4 {[%clk 0:00:07]} 41. Re7 {[%clk 0:00:28]}  Bb3 {[%clk 0:00:07]} 42. Rxa7 {[%clk 0:00:28]}  Rd3 {[%clk 0:00:07]} 43. Kf2 {[%clk 0:00:28]}  Bd5 {[%clk 0:00:07]} 44. Bg2 {[%clk 0:00:27]}  c4 {[%clk 0:00:08]} 45. Rc7 {[%clk 0:00:26]}  c3 {[%clk 0:00:07]} 46. Rc5 {[%clk 0:00:24]}  Bxf3 {[%clk 0:00:05]} 47. Bxf3 {[%clk 0:00:24]}  Kg7 {[%clk 0:00:04]} 48. Be4 {[%clk 0:00:22]}  Rd4 {[%clk 0:00:05]} 49. Ke3 {[%clk 0:00:22]}  Rd7 {[%clk 0:00:04]} 50. Rxc3 {[%clk 0:00:22]}  Re7 {[%clk 0:00:05]} 51. Kf4 {[%clk 0:00:22]}  f5 {[%clk 0:00:05]} 52. Bd5 {[%clk 0:00:22]}  Re1 {[%clk 0:00:06]} 53. Rc7+ {[%clk 0:00:21]}  Kh6 {[%clk 0:00:05]} 54. Bg8 {[%clk 0:00:20]}  Re4+ {[%clk 0:00:06]} 55. Kf3 {[%clk 0:00:20]}  Kg5 {[%clk 0:00:06]} 56. Rc6 {[%clk 0:00:18]}  Rf4+ {[%clk 0:00:06]} 57. Ke3 {[%clk 0:00:18]}  Re4+ {[%clk 0:00:07]} 58. Kd3 {[%clk 0:00:19]}  Rh4 {[%clk 0:00:07]} 59. Bf7 {[%clk 0:00:19]}  Rh6 {[%clk 0:00:07]} 60. Ke3 {[%clk 0:00:19]}  Rh3+ {[%clk 0:00:07]} 61. Kf2 {[%clk 0:00:19]}  Rh6 {[%clk 0:00:07]} 62. Kg2 {[%clk 0:00:20]}  Kh5 {[%clk 0:00:05]} 63. Rf6 {[%clk 0:00:19]}  Kg5 {[%clk 0:00:05]} 64. Rd6 {[%clk 0:00:19]}  Kh5 {[%clk 0:00:05]} 65. Kg3 {[%clk 0:00:19]}  Kg5 {[%clk 0:00:06]} 66. Rd5 {[%clk 0:00:18]}  Kf6 {[%clk 0:00:05]} 67. Be8 {[%clk 0:00:18]}  Kg5 {[%clk 0:00:05]} 68. Bd7 {[%clk 0:00:18]}  Rh4 {[%clk 0:00:04]} 69. Be8 {[%clk 0:00:16]}  Rg4+ {[%clk 0:00:04]} 70. Kf3 {[%clk 0:00:15]}  Rf4+ {[%clk 0:00:04]} 71. Kg2 {[%clk 0:00:15]}  Rg4+ {[%clk 0:00:05]} 72. Kh3 {[%clk 0:00:15]}  Rh4+ {[%clk 0:00:05]} 73. Kg3 {[%clk 0:00:15]}  Rg4+ {[%clk 0:00:05]} 74. Kf3 {[%clk 0:00:15]}  Rf4+ {[%clk 0:00:06]} 75. Kg3 {[%clk 0:00:16]}  Rg4+ {[%clk 0:00:06]} 1/2-1/2

[Event "December 12 Late 2023"]
[Site "https://www.chess.com"]
[Date "2023.12.12"]
[Round "8"]
[White "Kopczynski, Michal"]
[Black "Gubajdullin, Alexei"]
[Result "0-1"]
[Board "48"]
[TimeControl "180+1"]
[WhiteFideId "1124200"]
[BlackFideId "4141202"]
[WhiteElo "2525"]
[BlackElo "2634"]
[WhiteTeam "POL"]
[BlackTeam "RUS"]
[WhiteClock "0:00:00"]
[BlackClock "0:00:57"]

1. e4 {[%clk 0:03:00]}  e5 {[%clk 0:02:58]} 2. Nf3 {[%clk 0:03:00]}  Nf6 {[%clk 0:02:58]} 3. Nxe5 {[%clk 0:02:59]}  d6 {[%clk 0:02:58]} 4. Nf3 {[%clk 0:02:59]}  Nxe4 {[%clk 0:02:59]} 5. d4 {[%clk 0:03:00]}  d5 {[%clk 0:02:59]} 6. Bd3 {[%clk 0:03:00]}  Nc6 {[%clk 0:02:58]} 7. h3 {[%clk 0:02:58]}  Be7 {[%clk 0:02:57]} 8. O-O {[%clk 0:02:58]}  Nb4 {[%clk 0:02:55]} 9. Bxe4 {[%clk 0:02:51]}  dxe4 {[%clk 0:02:55]} 10. Ne5 {[%clk 0:02:52]}  O-O {[%clk 0:02:50]} 11. c3 {[%clk 0:02:49]}  Nc6 {[%clk 0:02:49]} 12. Nxc6 {[%clk 0:02:48]}  bxc6 {[%clk 0:02:49]} 13. Bf4 {[%clk 0:02:48]}  c5 {[%clk 0:02:49]} 14. dxc5 {[%clk 0:02:45]}  Ba6 {[%clk 0:02:40]} 15. Qxd8 {[%clk 0:02:40]}  Rfxd8 {[%clk 0:02:38]} 16. Re1 {[%clk 0:02:35]}  Bxc5 {[%clk 0:02:36]} 17. Bxc7 {[%clk 0:02:31]}  Rd7 {[%clk 0:02:36]} 18. Bf4 {[%clk 0:02:30]}  Rad8 {[%clk 0:02:35]} 19. Na3 {[%clk 0:02:22]}  Bxa3 {[%clk 0:02:28]} 20. bxa3 {[%clk 0:02:22]}  Bd3 {[%clk 0:02:27]} 21. Rad1 {[%clk 0:02:17]}  f5 {[%clk 0:02:24]} 22. g4 {[%clk 0:02:14]}  g6 {[%clk 0:02:22]} 23. gxf5 {[%clk 0:02:09]}  gxf5 {[%clk 0:02:22]} 24. Kh2 {[%clk 0:02:10]}  Kf7 {[%clk 0:02:17]} 25. Rg1 {[%clk 0:02:09]}  Rg8 {[%clk 0:01:58]} 26. Rxg8 {[%clk 0:02:03]}  Kxg8 {[%clk 0:01:58]} 27. Rg1+ {[%clk 0:01:52]}  Kf8 {[%clk 0:01:57]} 28. Rg5 {[%clk 0:01:48]}  Rd5 {[%clk 0:01:57]} 29. Be3 {[%clk 0:01:38]}  a5 {[%clk 0:01:56]} 30. Kg3 {[%clk 0:01:34]}  Kf7 {[%clk 0:01:47]} 31. Kf4 {[%clk 0:01:34]}  Ke6 {[%clk 0:01:44]} 32. Rh5 {[%clk 0:01:30]}  Rb5 {[%clk 0:01:29]} 33. Rh6+ {[%clk 0:01:22]}  Kf7 {[%clk 0:01:29]} 34. Rxh7+ {[%clk 0:01:22]}  Kg6 {[%clk 0:01:30]} 35. Ra7 {[%clk 0:01:20]}  Bc2 {[%clk 0:01:27]} 36. Ra6+ {[%clk 0:01:10]}  Kf7 {[%clk 0:01:24]} 37. c4 {[%clk 0:01:10]}  Rb2 {[%clk 0:01:21]} 38. Rxa5 {[%clk 0:01:08]}  Rxa2 {[%clk 0:01:21]} 39. Kxf5 {[%clk 0:01:05]}  Ra1 {[%clk 0:01:20]} 40. Ra7+ {[%clk 0:01:05]}  Ke8 {[%clk 0:01:20]} 41. h4 {[%clk 0:01:04]}  Rh1 {[%clk 0:01:19]} 42. Bg5 {[%clk 0:01:02]}  e3+ {[%clk 0:01:19]} 43. Ke6 {[%clk 0:00:59]}  Bf5+ {[%clk 0:01:17]} 44. Kxf5 {[%clk 0:00:09]}  exf2 {[%clk 0:01:16]} 45. Re7+ {[%clk 0:00:09]}  Kf8 {[%clk 0:01:16]} 46. Re4 {[%clk 0:00:06]}  f1=Q+ {[%clk 0:01:14]} 47. Rf4 {[%clk 0:00:07]}  Qd3+ {[%clk 0:01:05]} 48. Ke6+ {[%clk 0:00:04]}  Kg8 {[%clk 0:01:01]} 49. Kf6 {[%clk 0:00:00]}  Re1 {[%clk 0:00:57]} 0-1

[Event "December 12 Late 2023"]
[Site "https://www.chess.com"]
[Date "2023.12.12"]
[Round "8"]
[White "Ambartsumova, Karina"]
[Black "Karas, Marek"]
[Result "1/2-1/2"]
[Board "50"]
[TimeControl "180+1"]
[WhiteFideId "4166299"]
[BlackFideId "14928558"]
[WhiteElo "2622"]
[BlackElo "2523"]
[WhiteTeam "RUS"]
[BlackTeam "CZE"]
[WhiteClock "0:00:13"]
[BlackClock "0:00:08"]

1. d4 {[%clk 0:03:00]}  g6 {[%clk 0:02:56]} 2. c4 {[%clk 0:03:00]}  Bg7 {[%clk 0:02:56]} 3. Nc3 {[%clk 0:03:01]}  d6 {[%clk 0:02:57]} 4. g3 {[%clk 0:03:01]}  Nf6 {[%clk 0:02:57]} 5. Bg2 {[%clk 0:03:02]}  O-O {[%clk 0:02:57]} 6. Nf3 {[%clk 0:03:02]}  c6 {[%clk 0:02:57]} 7. e4 {[%clk 0:03:01]}  Bg4 {[%clk 0:02:56]} 8. h3 {[%clk 0:03:00]}  Bxf3 {[%clk 0:02:55]} 9. Bxf3 {[%clk 0:03:00]}  e5 {[%clk 0:02:53]} 10. Be3 {[%clk 0:02:58]}  Nbd7 {[%clk 0:02:48]} 11. O-O {[%clk 0:02:58]}  exd4 {[%clk 0:02:45]} 12. Bxd4 {[%clk 0:02:59]}  Ne5 {[%clk 0:02:45]} 13. Be2 {[%clk 0:02:55]}  Re8 {[%clk 0:02:24]} 14. f4 {[%clk 0:02:55]}  Ned7 {[%clk 0:02:21]} 15. Bf3 {[%clk 0:02:55]}  Nc5 {[%clk 0:02:21]} 16. e5 {[%clk 0:02:51]}  Nfd7 {[%clk 0:02:16]} 17. exd6 {[%clk 0:02:47]}  Qb6 {[%clk 0:02:03]} 18. Bxg7 {[%clk 0:02:14]}  Kxg7 {[%clk 0:01:55]} 19. Qd4+ {[%clk 0:02:12]}  f6 {[%clk 0:01:49]} 20. b3 {[%clk 0:02:10]}  Nd3 {[%clk 0:01:42]} 21. Qxb6 {[%clk 0:02:07]}  axb6 {[%clk 0:01:43]} 22. Rad1 {[%clk 0:01:59]}  Nb4 {[%clk 0:01:39]} 23. Rd2 {[%clk 0:01:52]}  Re3 {[%clk 0:01:36]} 24. Nd1 {[%clk 0:01:47]}  Rd3 {[%clk 0:01:31]} 25. Rxd3 {[%clk 0:01:45]}  Nxd3 {[%clk 0:01:32]} 26. Nc3 {[%clk 0:01:44]}  Nb4 {[%clk 0:01:29]} 27. Re1 {[%clk 0:01:43]}  Nc5 {[%clk 0:01:16]} 28. Re7+ {[%clk 0:01:29]}  Kh6 {[%clk 0:01:15]} 29. a4 {[%clk 0:00:42]}  Rd8 {[%clk 0:01:11]} 30. Ne4 {[%clk 0:00:29]}  Nxe4 {[%clk 0:01:00]} 31. Bxe4 {[%clk 0:00:30]}  Rxd6 {[%clk 0:00:56]} 32. Rxb7 {[%clk 0:00:30]}  c5 {[%clk 0:00:57]} 33. Kf2 {[%clk 0:00:21]}  f5 {[%clk 0:00:55]} 34. Bf3 {[%clk 0:00:20]}  Nc2 {[%clk 0:00:48]} 35. g4 {[%clk 0:00:18]}  fxg4 {[%clk 0:00:43]} 36. hxg4 {[%clk 0:00:18]}  g5 {[%clk 0:00:42]} 37. Be4 {[%clk 0:00:17]}  gxf4 {[%clk 0:00:32]} 38. Rxh7+ {[%clk 0:00:13]}  Kg5 {[%clk 0:00:32]} 39. Rg7+ {[%clk 0:00:12]}  Kh6 {[%clk 0:00:31]} 40. Rh7+ {[%clk 0:00:12]}  Kg5 {[%clk 0:00:31]} 41. Bxc2 {[%clk 0:00:12]}  Rd2+ {[%clk 0:00:30]} 42. Kf3 {[%clk 0:00:13]}  Rxc2 {[%clk 0:00:30]} 43. Rh5+ {[%clk 0:00:13]}  Kg6 {[%clk 0:00:29]} 44. Kxf4 {[%clk 0:00:14]}  Rc3 {[%clk 0:00:24]} 45. Rd5 {[%clk 0:00:14]}  Rxb3 {[%clk 0:00:23]} 46. Rd6+ {[%clk 0:00:14]}  Kf7 {[%clk 0:00:23]} 47. Kf5 {[%clk 0:00:15]}  Rb4 {[%clk 0:00:18]} 48. g5 {[%clk 0:00:13]}  Rxc4 {[%clk 0:00:16]} 49. Rxb6 {[%clk 0:00:14]}  Rxa4 {[%clk 0:00:16]} 50. Rb7+ {[%clk 0:00:14]}  Ke8 {[%clk 0:00:15]} 51. g6 {[%clk 0:00:12]}  Ra1 {[%clk 0:00:14]} 52. Rc7 {[%clk 0:00:09]}  Kf8 {[%clk 0:00:09]} 53. Kf6 {[%clk 0:00:07]}  Rf1+ {[%clk 0:00:08]} 54. Kg5 {[%clk 0:00:08]}  Kg8 {[%clk 0:00:06]} 55. Rc8+ {[%clk 0:00:06]}  Kg7 {[%clk 0:00:06]} 56. Rc7+ {[%clk 0:00:07]}  Kg8 {[%clk 0:00:06]} 57. Rxc5 {[%clk 0:00:07]}  Rg1+ {[%clk 0:00:06]} 58. Kf6 {[%clk 0:00:07]}  Rf1+ {[%clk 0:00:06]} 59. Rf5 {[%clk 0:00:07]}  Rxf5+ {[%clk 0:00:06]} 60. Kxf5 {[%clk 0:00:08]}  Kg7 {[%clk 0:00:06]} 61. Kg5 {[%clk 0:00:09]}  Kg8 {[%clk 0:00:07]} 62. Kg4 {[%clk 0:00:10]}  Kg7 {[%clk 0:00:07]} 63. Kf5 {[%clk 0:00:10]}  Kg8 {[%clk 0:00:07]} 64. Kf6 {[%clk 0:00:11]}  Kf8 {[%clk 0:00:07]} 65. g7+ {[%clk 0:00:12]}  Kg8 {[%clk 0:00:08]} 66. Kg6 {[%clk 0:00:13]} 1/2-1/2

[Event "December 12 Late 2023"]
[Site "https://www.chess.com"]
[Date "2023.12.12"]
[Round "8"]
[White "Golubev, Mikhail"]
[Black "Lin, Bryan Enming"]
[Result "0-1"]
[Board "51"]
[TimeControl "180+1"]
[WhiteFideId "14100983"]
[BlackFideId "30987121"]
[WhiteElo "2620"]
[BlackElo "2520"]
[WhiteTeam "UKR"]
[BlackTeam "USA"]
[WhiteClock "0:00:00"]
[BlackClock "0:00:12"]

1. e4 {[%clk 0:03:00]}  e5 {[%clk 0:02:59]} 2. Nf3 {[%clk 0:03:00]}  Nc6 {[%clk 0:03:00]} 3. Bc4 {[%clk 0:03:00]}  Nf6 {[%clk 0:03:00]} 4. Ng5 {[%clk 0:03:00]}  d5 {[%clk 0:03:01]} 5. exd5 {[%clk 0:03:01]}  b5 {[%clk 0:03:01]} 6. Bf1 {[%clk 0:02:58]}  Nxd5 {[%clk 0:03:02]} 7. Bxb5 {[%clk 0:02:51]}  Bb7 {[%clk 0:03:02]} 8. Nf3 {[%clk 0:02:28]}  Qf6 {[%clk 0:02:27]} 9. d4 {[%clk 0:02:05]}  exd4 {[%clk 0:02:23]} 10. Qxd4 {[%clk 0:02:02]}  Qe6+ {[%clk 0:02:18]} 11. Qe5 {[%clk 0:01:59]}  O-O-O {[%clk 0:02:06]} 12. Qxe6+ {[%clk 0:01:58]}  fxe6 {[%clk 0:02:06]} 13. O-O {[%clk 0:01:58]}  Ndb4 {[%clk 0:02:06]} 14. Ba4 {[%clk 0:01:55]}  Bc5 {[%clk 0:01:58]} 15. Nc3 {[%clk 0:01:52]}  Nd4 {[%clk 0:01:58]} 16. Nxd4 {[%clk 0:01:44]}  Bxd4 {[%clk 0:01:58]} 17. Bg5 {[%clk 0:01:36]}  Rdf8 {[%clk 0:01:58]} 18. Be7 {[%clk 0:01:32]}  c5 {[%clk 0:01:48]} 19. Bxf8 {[%clk 0:01:30]}  Rxf8 {[%clk 0:01:49]} 20. Nd1 {[%clk 0:01:21]}  Nd5 {[%clk 0:01:40]} 21. c3 {[%clk 0:01:21]}  Be5 {[%clk 0:01:39]} 22. Ne3 {[%clk 0:01:20]}  Nf4 {[%clk 0:01:39]} 23. Bb5 {[%clk 0:00:41]}  h5 {[%clk 0:01:28]} 24. f3 {[%clk 0:00:35]}  Rf6 {[%clk 0:01:24]} 25. Rad1 {[%clk 0:00:32]}  Rg6 {[%clk 0:01:25]} 26. Rd2 {[%clk 0:00:25]}  Bc7 {[%clk 0:01:09]} 27. Bc4 {[%clk 0:00:24]}  Bc6 {[%clk 0:01:03]} 28. g3 {[%clk 0:00:19]}  Nh3+ {[%clk 0:01:03]} 29. Kg2 {[%clk 0:00:17]}  Ng5 {[%clk 0:01:03]} 30. h4 {[%clk 0:00:15]}  Nxf3 {[%clk 0:00:59]} 31. Rxf3 {[%clk 0:00:10]}  Rxg3+ {[%clk 0:00:59]} 32. Kf2 {[%clk 0:00:10]}  Rxf3+ {[%clk 0:01:00]} 33. Ke2 {[%clk 0:00:10]}  Bf4 {[%clk 0:00:59]} 34. Bxe6+ {[%clk 0:00:09]}  Kb7 {[%clk 0:00:54]} 35. Rd3 {[%clk 0:00:09]}  Rg3 {[%clk 0:00:46]} 36. Nc4 {[%clk 0:00:09]}  Rg2+ {[%clk 0:00:46]} 37. Kf1 {[%clk 0:00:09]}  Rh2 {[%clk 0:00:43]} 38. Bd5 {[%clk 0:00:08]}  Rxh4 {[%clk 0:00:42]} 39. Na5+ {[%clk 0:00:08]}  Kb6 {[%clk 0:00:40]} 40. Nxc6 {[%clk 0:00:09]}  g5 {[%clk 0:00:38]} 41. Ne7 {[%clk 0:00:08]}  Rh2 {[%clk 0:00:37]} 42. Ng6 {[%clk 0:00:08]}  Bc7 {[%clk 0:00:35]} 43. b4 {[%clk 0:00:07]}  cxb4 {[%clk 0:00:34]} 44. cxb4 {[%clk 0:00:07]}  Rb2 {[%clk 0:00:33]} 45. Rc3 {[%clk 0:00:07]}  Bh2 {[%clk 0:00:30]} 46. Rc6+ {[%clk 0:00:08]}  Kb5 {[%clk 0:00:30]} 47. a4+ {[%clk 0:00:06]}  Kxa4 {[%clk 0:00:24]} 48. Ra6+ {[%clk 0:00:06]}  Kxb4 {[%clk 0:00:25]} 49. Rxa7 {[%clk 0:00:07]}  Kc5 {[%clk 0:00:20]} 50. Ne7 {[%clk 0:00:06]}  Bb8 {[%clk 0:00:16]} 51. Rd7 {[%clk 0:00:05]}  Bd6 {[%clk 0:00:16]} 52. Nf5 {[%clk 0:00:00]}  Kxd5 {[%clk 0:00:12]} 0-1

[Event "December 12 Late 2023"]
[Site "https://www.chess.com"]
[Date "2023.12.12"]
[Round "8"]
[White "Makaraci, Tunahan"]
[Black "Olsen, Filip Boe"]
[Result "0-1"]
[Board "52"]
[TimeControl "180+1"]
[WhiteFideId "6356559"]
[BlackFideId "1440640"]
[WhiteElo "2515"]
[BlackElo "2614"]
[WhiteTeam "TUR"]
[BlackTeam "DEN"]
[WhiteClock "0:00:07"]
[BlackClock "0:01:21"]

1. e4 {[%clk 0:03:00]}  c6 {[%clk 0:02:58]} 2. c4 {[%clk 0:03:00]}  e5 {[%clk 0:02:56]} 3. Nf3 {[%clk 0:02:57]}  d6 {[%clk 0:02:52]} 4. d4 {[%clk 0:02:57]}  exd4 {[%clk 0:02:51]} 5. Qxd4 {[%clk 0:02:58]}  Nf6 {[%clk 0:02:51]} 6. Nc3 {[%clk 0:02:58]}  g6 {[%clk 0:02:51]} 7. Bg5 {[%clk 0:02:57]}  Bg7 {[%clk 0:02:51]} 8. O-O-O {[%clk 0:02:56]}  O-O {[%clk 0:02:43]} 9. Qxd6 {[%clk 0:02:55]}  Qxd6 {[%clk 0:02:44]} 10. Rxd6 {[%clk 0:02:54]}  Ng4 {[%clk 0:02:44]} 11. Rd2 {[%clk 0:02:48]}  Na6 {[%clk 0:02:42]} 12. h3 {[%clk 0:02:47]}  Nf6 {[%clk 0:02:40]} 13. e5 {[%clk 0:02:32]}  Nd7 {[%clk 0:02:37]} 14. Be7 {[%clk 0:01:47]}  Re8 {[%clk 0:02:36]} 15. Bd6 {[%clk 0:01:48]}  Bh6 {[%clk 0:02:30]} 16. Bd3 {[%clk 0:01:44]}  Bxd2+ {[%clk 0:02:29]} 17. Kxd2 {[%clk 0:01:43]}  Ndc5 {[%clk 0:02:24]} 18. g4 {[%clk 0:01:37]}  Nxd3 {[%clk 0:02:22]} 19. Kxd3 {[%clk 0:01:37]}  h5 {[%clk 0:02:17]} 20. Ne4 {[%clk 0:01:29]}  Kg7 {[%clk 0:01:58]} 21. gxh5 {[%clk 0:01:30]}  Bf5 {[%clk 0:01:58]} 22. hxg6 {[%clk 0:01:24]}  Rad8 {[%clk 0:01:44]} 23. Nd4 {[%clk 0:00:19]}  Rxd6 {[%clk 0:01:33]} 24. gxf7 {[%clk 0:00:19]}  Rxe5 {[%clk 0:01:23]} 25. f3 {[%clk 0:00:12]}  c5 {[%clk 0:01:21]} 26. Rg1+ {[%clk 0:00:07]}  Kxf7 {[%clk 0:01:21]} 0-1

[Event "December 12 Late 2023"]
[Site "https://www.chess.com"]
[Date "2023.12.12"]
[Round "8"]
[White "Gutierrez Olivares, Daniel"]
[Black "Aghasiyev, Kamal"]
[Result "0-1"]
[Board "55"]
[TimeControl "180+1"]
[WhiteFideId "2264005"]
[BlackFideId "13402854"]
[WhiteElo "2476"]
[BlackElo "2589"]
[WhiteTeam "ESP"]
[BlackTeam "AZE"]
[WhiteClock "0:00:00"]
[BlackClock "0:00:44"]

1. c4 {[%clk 0:03:00]}  e5 {[%clk 0:02:57]} 2. Nc3 {[%clk 0:03:00]}  Nf6 {[%clk 0:02:57]} 3. e3 {[%clk 0:02:58]}  Nc6 {[%clk 0:02:53]} 4. g4 {[%clk 0:02:57]}  h6 {[%clk 0:02:47]} 5. Bg2 {[%clk 0:02:57]}  Bb4 {[%clk 0:02:46]} 6. h3 {[%clk 0:02:49]}  Bxc3 {[%clk 0:02:46]} 7. dxc3 {[%clk 0:02:47]}  e4 {[%clk 0:02:33]} 8. Qc2 {[%clk 0:02:41]}  d5 {[%clk 0:02:32]} 9. cxd5 {[%clk 0:02:33]}  Qxd5 {[%clk 0:02:30]} 10. Ne2 {[%clk 0:02:27]}  Ne5 {[%clk 0:02:29]} 11. Nf4 {[%clk 0:01:44]}  Qc6 {[%clk 0:02:28]} 12. O-O {[%clk 0:01:31]}  g5 {[%clk 0:02:13]} 13. Ne2 {[%clk 0:01:29]}  h5 {[%clk 0:02:07]} 14. Ng3 {[%clk 0:01:20]}  hxg4 {[%clk 0:02:01]} 15. Bxe4 {[%clk 0:01:06]}  Nf3+ {[%clk 0:01:56]} 16. Kg2 {[%clk 0:00:57]}  gxh3+ {[%clk 0:01:36]} 17. Kh1 {[%clk 0:00:56]}  Nxe4 {[%clk 0:01:35]} 18. Qxe4+ {[%clk 0:00:50]}  Qxe4 {[%clk 0:01:35]} 19. Nxe4 {[%clk 0:00:51]}  b6 {[%clk 0:01:32]} 20. Nf6+ {[%clk 0:00:37]}  Kf8 {[%clk 0:01:31]} 21. e4 {[%clk 0:00:31]}  Bb7 {[%clk 0:01:31]} 22. Be3 {[%clk 0:00:28]}  Kg7 {[%clk 0:01:24]} 23. Nd5 {[%clk 0:00:27]}  Rae8 {[%clk 0:01:19]} 24. Rg1 {[%clk 0:00:16]}  Nxg1 {[%clk 0:01:08]} 25. Rxg1 {[%clk 0:00:14]}  f6 {[%clk 0:01:06]} 26. Bd4 {[%clk 0:00:13]}  Bxd5 {[%clk 0:01:02]} 27. Rxg5+ {[%clk 0:00:12]}  Kf7 {[%clk 0:01:02]} 28. Rxd5 {[%clk 0:00:11]}  Rxe4 {[%clk 0:01:01]} 29. Rf5 {[%clk 0:00:10]}  h2 {[%clk 0:00:56]} 30. Rxf6+ {[%clk 0:00:07]}  Ke7 {[%clk 0:00:56]} 31. Rf7+ {[%clk 0:00:01]}  Kxf7 {[%clk 0:00:54]} 32. Bxh8 {[%clk 0:00:02]}  Re2 {[%clk 0:00:46]} 33. Kxh2 {[%clk 0:00:01]}  Rxf2+ {[%clk 0:00:44]} 34. Kg3 {[%clk 0:00:00]}  Rxb2 {[%clk 0:00:44]} 0-1

[Event "December 12 Late 2023"]
[Site "https://www.chess.com"]
[Date "2023.12.12"]
[Round "8"]
[White "Assylov, Miras"]
[Black "Adamczyk, Zuzanna"]
[Result "1-0"]
[Board "59"]
[TimeControl "180+1"]
[WhiteFideId "13728873"]
[BlackFideId "1187570"]
[WhiteElo "2576"]
[BlackElo "2407"]
[WhiteTeam "KAZ"]
[BlackTeam "POL"]
[WhiteClock "0:00:19"]
[BlackClock "0:00:00"]

1. a4 {[%clk 0:02:46]}  e5 {[%clk 0:02:53]} 2. Na3 {[%clk 0:02:43]}  d5 {[%clk 0:02:50]} 3. d4 {[%clk 0:02:40]}  e4 {[%clk 0:02:47]} 4. Bf4 {[%clk 0:02:37]}  c6 {[%clk 0:02:42]} 5. e3 {[%clk 0:02:36]}  Bd6 {[%clk 0:02:42]} 6. Ne2 {[%clk 0:02:31]}  Ne7 {[%clk 0:02:37]} 7. c3 {[%clk 0:02:19]}  Bg4 {[%clk 0:02:13]} 8. Bxd6 {[%clk 0:02:12]}  Qxd6 {[%clk 0:02:13]} 9. Nc2 {[%clk 0:02:12]}  Nd7 {[%clk 0:02:10]} 10. b3 {[%clk 0:02:10]}  O-O {[%clk 0:02:08]} 11. a5 {[%clk 0:02:07]}  f5 {[%clk 0:02:06]} 12. Qd2 {[%clk 0:02:03]}  Bxe2 {[%clk 0:01:54]} 13. Bxe2 {[%clk 0:02:03]}  f4 {[%clk 0:01:55]} 14. exf4 {[%clk 0:02:03]}  Rxf4 {[%clk 0:01:54]} 15. Ne3 {[%clk 0:02:03]}  Raf8 {[%clk 0:01:51]} 16. O-O {[%clk 0:02:01]}  Ng6 {[%clk 0:01:43]} 17. c4 {[%clk 0:01:58]}  Rh4 {[%clk 0:01:11]} 18. g3 {[%clk 0:01:56]}  Rh6 {[%clk 0:00:51]} 19. cxd5 {[%clk 0:01:51]}  cxd5 {[%clk 0:00:52]} 20. Nxd5 {[%clk 0:01:49]}  Kh8 {[%clk 0:00:40]} 21. Ne3 {[%clk 0:01:46]}  Nde5 {[%clk 0:00:23]} 22. Rfd1 {[%clk 0:01:22]}  Nf3+ {[%clk 0:00:20]} 23. Bxf3 {[%clk 0:01:23]}  exf3 {[%clk 0:00:20]} 24. Rac1 {[%clk 0:01:19]}  Qd7 {[%clk 0:00:18]} 25. h4 {[%clk 0:00:33]}  Qh3 {[%clk 0:00:18]} 26. Qb4 {[%clk 0:00:33]}  Re8 {[%clk 0:00:06]} 27. Qd6 {[%clk 0:00:20]}  Rxh4 {[%clk 0:00:02]} 28. gxh4 {[%clk 0:00:19]}  Nxh4 {[%clk 0:00:00]} 29. Qg3 {[%clk 0:00:19]} 1-0